[Event "EYCC Open-U12 2019"]
[Site "Bratislava"]
[Date "2019.08.06"]
[Round "5.45"]
[White "Snitsarenko, Igor"]
[Black "Hald Falkesgaard, Jeppe"]
[Result "1-0"]
[ECO "B47"]
[WhiteElo "1481"]
[BlackElo "1815"]
[Annotator "NA"]
[PlyCount "65"]
[EventDate "2019.08.02"]
[EventType "swiss"]
[EventCountry "SVK"]
[SourceTitle "playchess.com"]
[Source "ChessBase"]
[SourceQuality "1"]
[TimeControl "40/5400+30:1800+30"]

1. e4 {[%emt 0:00:00]} c5 {[%emt 0:00:00]} 2. Nf3 {[%emt 0:00:00]} e6 {[%emt 0:00:00]} 3. d4 {[%emt 0:00:00]} cxd4 {[%emt 0:00:00]} 4. Nxd4 {[%emt 0:00:00]} Nc6 {[%emt 0:00:00]} 5. Nc3 {[%emt 0:00:39]} Qc7 {[%emt 0:00:05]} 6. g3 {[%emt 0:00:47]} a6 {[%emt 0:01:03]} 7. Bg2 {[%emt 0:00:32]} Nf6 {[%emt 0:00:24]} 8. O-O {[%emt 0:00:19]} Be7 {[%emt 0:00:33]} 9. Re1 {[%emt 0:00:44]} O-O {[%emt 0:03:13]} 10. Be3 {[%emt 0:04:24]} d6 {[%emt 0:04:07]} 11. Na4 {[%emt 0:07:28]} Nxd4 {[%emt 0:03:05]} 12. Bxd4 {[%emt 0:00:55]} e5 {[%emt 0:00:35]} 13. Be3 {[%emt 0:00:51]} b5 {[%emt 0:00:21]} 14. Nb6 {[%emt 0:09:27]} Rb8 {[%emt 0:00:19]} 15. Nxc8 {[%emt 0:01:23]} Rfxc8 {[%emt 0:00:26]} 16. Rc1 {[%emt 0:05:54]} Qa5 {[%emt 0:02:49]} 17. a3 {[%emt 0:02:34]} Rc6 {[%emt 0:02:20]} 18. Qd3 {[%emt 0:09:38]} Rbc8 {[%emt 0:01:44]} 19. Bd2 {[%emt 0:02:02]} Qc7 {[%emt 0:00:29]} 20. c3 {[%emt 0:05:17]} Nd7 {[%emt 0:02:45]} 21. Be3 {[%emt 0:13:32]} Nb6 {[%emt 0:01:01]} 22. Bxb6 {[%emt 0:00:31]} Qxb6 {[%emt 0:00:16]} 23. Rc2 {[%emt 0:00:45]} a5 {[%emt 0:01:08]} 24. h4 {[%emt 0:01:51]} b4 {[%emt 0:03:44]} 25. axb4 {[%emt 0:02:23]} axb4 {[%emt 0:00:10]} 26. Rec1 {[%emt 0:02:16]} Qc7 {[%emt 0:01:54]} 27. Bh3 {[%emt 0:02:03]} Rb8 {[%emt 0:01:35]} 28. cxb4 {[%emt 0:03:50]} Rxc2 {[%emt 0:00:47]} 29. Rxc2 {[%emt 0:01:55]} Qa7 {[%emt 0:01:28]} 30. Qa3 {[%emt 0:03:08]} Qd4 {[%emt 0:01:21]} 31. Qf3 {[%emt 0:02:32]} Qxb4 {[%emt 0:02:47]} 32. Rc7 {[%emt 0:02:04]} Rb7 {[%emt 0:01:10]} 33. Be6 {[%emt 0:09:09]} 1-0

[Event "EYCC Open-U12 2019"]
[Site "Bratislava"]
[Date "2019.08.06"]
[Round "5.46"]
[White "Shinkarov, Artem"]
[Black "Kolani, Arjun"]
[Result "1-0"]
[ECO "A36"]
[WhiteElo "1798"]
[BlackElo "1699"]
[Annotator "NA"]
[PlyCount "81"]
[EventDate "2019.08.02"]
[EventType "swiss"]
[EventCountry "SVK"]
[SourceTitle "playchess.com"]
[Source "ChessBase"]
[SourceQuality "1"]
[TimeControl "40/5400+30:1800+30"]

1. c4 {[%emt 0:00:00]} g6 {[%emt 0:00:00]} 2. Nc3 {[%emt 0:00:00]} c5 {[%emt 0:00:22]} 3. g3 {[%emt 0:00:13]} Bg7 {[%emt 0:00:26]} 4. Bg2 {[%emt 0:00:09]} Nc6 {[%emt 0:00:11]} 5. d3 {[%emt 0:00:15]} Nf6 {[%emt 0:00:49]} 6. e4 {[%emt 0:00:59]} d6 {[%emt 0:00:28]} 7. Nge2 {[%emt 0:00:09]} O-O {[%emt 0:00:34]} 8. O-O {[%emt 0:00:07]} a6 {[%emt 0:01:18]} 9. h3 {[%emt 0:01:16]} Rb8 {[%emt 0:01:01]} 10. f4 {[%emt 0:01:13]} Ne8 {[%emt 0:11:19]} 11. Be3 {[%emt 0:02:54]} Nd4 {[%emt 0:13:52]} 12. Rb1 {[%emt 0:06:59]} b5 {[%emt 0:11:51]} 13. cxb5 {[%emt 0:00:52]} axb5 {[%emt 0:04:43]} 14. b4 {[%emt 0:07:42]} Nc7 {[%emt 0:05:05]} 15. bxc5 {[%emt 0:01:45]} dxc5 {[%emt 0:00:43]} 16. e5 {[%emt 0:03:46]} Bf5 {[%emt 0:15:30]} 17. Ne4 {[%emt 0:03:33]} Nd5 {[%emt 0:02:17]} 18. Bd2 {[%emt 0:00:25]} Qb6 {[%emt 0:06:21]} 19. Kh2 {[%emt 0:09:45]} Rfd8 {[%emt 0:02:23]} 20. Nxd4 {[%emt 0:03:12]} cxd4 {[%emt 0:00:15]} 21. Qb3 {[%emt 0:15:22]} Be6 {[%emt 0:03:13]} 22. Qb2 {[%emt 0:00:45]} b4 {[%emt 0:06:31]} 23. Rfc1 {[%emt 0:05:45]} Rdc8 {[%emt 0:01:52]} 24. Rxc8+ {[%emt 0:00:31]} Rxc8 {[%emt 0:00:07]} 25. Bxb4 {[%emt 0:03:11]} Rb8 {[%emt 0:05:50]} 26. a3 {[%emt 0:01:42]} f6 {[%emt 0:02:21]} 27. exf6 {[%emt 0:00:28]} exf6 {[%emt 0:00:36]} 28. Nc5 {[%emt 0:03:47]} Nxb4 {[%emt 0:02:23]} 29. Qxb4 {[%emt 0:02:26]} Qxb4 {[%emt 0:00:22]} 30. Rxb4 {[%emt 0:00:11]} Rxb4 {[%emt 0:00:21]} 31. axb4 {[%emt 0:00:02]} Bc8 {[%emt 0:00:15]} 32. b5 {[%emt 0:01:57]} Bf8 {[%emt 0:00:21]} 33. Bd5+ {[%emt 0:00:27]} Kg7 {[%emt 0:00:32]} 34. Nb3 {[%emt 0:00:13]} Bd7 {[%emt 0:01:14]} 35. b6 {[%emt 0:00:05]} Bd6 {[%emt 0:00:17]} 36. Nxd4 {[%emt 0:00:21]} Kf8 {[%emt 0:00:18]} 37. Nb3 {[%emt 0:05:03]} Ke8 {[%emt 0:00:23]} 38. d4 {[%emt 0:00:14]} Ba4 {[%emt 0:00:38]} 39. Nc5 {[%emt 0:00:11]} Bxc5 {[%emt 0:00:20]} 40. dxc5 {[%emt 0:00:00]} Kd7 {[%emt 0:00:00]} 41. Kg2 1-0

[Event "EYCC Open-U12 2019"]
[Site "Bratislava"]
[Date "2019.08.06"]
[Round "5.47"]
[White "Cina', Vittorio"]
[Black "Suleymanov, Ali"]
[Result "0-1"]
[ECO "A45"]
[WhiteElo "1780"]
[BlackElo "1733"]
[Annotator "NA"]
[PlyCount "87"]
[EventDate "2019.08.02"]
[EventType "swiss"]
[EventCountry "SVK"]
[SourceTitle "playchess.com"]
[Source "ChessBase"]
[SourceQuality "1"]
[TimeControl "40/5400+30:1800+30"]

1. d4 {[%emt 0:00:00]} Nf6 {[%emt 0:00:00]} 2. Bg5 {[%emt 0:00:00]} e6 {[%emt 0:00:02]} 3. e4 {[%emt 0:00:00]} h6 {[%emt 0:00:28]} 4. Bxf6 {[%emt 0:00:00]} Qxf6 {[%emt 0:00:09]} 5. c3 {[%emt 0:00:35]} b6 {[%emt 0:00:51]} 6. Qf3 {[%emt 0:01:44]} Qxf3 {[%emt 0:00:54]} 7. Nxf3 {[%emt 0:00:07]} Bb7 {[%emt 0:00:04]} 8. Bd3 {[%emt 0:00:47]} Be7 {[%emt 0:01:16]} 9. O-O {[%emt 0:01:00]} O-O {[%emt 0:00:05]} 10. Nbd2 {[%emt 0:00:34]} c5 {[%emt 0:00:57]} 11. Rfe1 {[%emt 0:03:39]} cxd4 {[%emt 0:03:18]} 12. cxd4 {[%emt 0:00:25]} d5 {[%emt 0:03:24]} 13. exd5 {[%emt 0:02:59]} Bxd5 {[%emt 0:00:11]} 14. Be4 {[%emt 0:00:38]} Bxe4 {[%emt 0:03:38]} 15. Nxe4 {[%emt 0:04:36]} Nc6 {[%emt 0:02:56]} 16. Nc3 {[%emt 0:05:34]} Bf6 {[%emt 0:03:47]} 17. Red1 {[%emt 0:20:35]} Rfd8 {[%emt 0:14:49]} 18. Ne2 {[%emt 0:13:28]} Rac8 {[%emt 0:04:23]} 19. Rd2 {[%emt 0:05:24]} Rd6 {[%emt 0:13:20]} 20. Rad1 {[%emt 0:02:36]} Rcd8 {[%emt 0:00:45]} 21. g3 {[%emt 0:12:51]} g5 {[%emt 0:02:03]} 22. h3 {[%emt 0:01:02]} Bg7 {[%emt 0:01:34]} 23. g4 {[%emt 0:02:12]} a6 {[%emt 0:04:48]} 24. Kg2 {[%emt 0:05:31]} b5 {[%emt 0:00:50]} 25. a3 {[%emt 0:04:10]} Na5 {[%emt 0:03:48]} 26. Rc2 {[%emt 0:09:02]} e5 {[%emt 0:03:52]} 27. Ng3 {[%emt 0:00:32]} exd4 {[%emt 0:00:20]} 28. Nf5 {[%emt 0:00:24]} R6d7 {[%emt 0:00:28]} 29. Nxg7 {[%emt 0:02:07]} Kxg7 {[%emt 0:00:11]} 30. Ne5 {[%emt 0:00:35]} Rd5 {[%emt 0:01:25]} 31. b4 {[%emt 0:01:03]} Rxe5 {[%emt 0:03:27]} 32. bxa5 {[%emt 0:00:05]} Re4 {[%emt 0:01:58]} 33. Kf3 {[%emt 0:00:37]} Rf4+ {[%emt 0:00:16]} 34. Kg3 {[%emt 0:00:22]} d3 {[%emt 0:03:34]} 35. Rc6 {[%emt 0:00:18]} d2 {[%emt 0:02:20]} 36. Rxa6 {[%emt 0:01:36]} Re4 {[%emt 0:00:16]} 37. Rb6 {[%emt 0:00:38]} Re1 {[%emt 0:00:13]} 38. Rxd2 {[%emt 0:00:04]} Rxd2 {[%emt 0:00:07]} 39. a6 {[%emt 0:00:04]} Rd3+ {[%emt 0:00:19]} 40. Kg2 {[%emt 0:00:00]} Rxa3 {[%emt 0:00:00]} 41. h4 {[%emt 0:01:07]} gxh4 {[%emt 0:00:14]} 42. f4 {[%emt 0:00:24]} Re2+ {[%emt 0:00:21]} 43. Kf1 {[%emt 0:00:07]} Rb2 {[%emt 0:00:06]} 44. Rb7 0-1

[Event "EYCC Open-U12 2019"]
[Site "Bratislava"]
[Date "2019.08.06"]
[Round "5.48"]
[White "Kostelidis, Georgios"]
[Black "Wahlgreen, Noah"]
[Result "0-1"]
[ECO "A45"]
[WhiteElo "1406"]
[BlackElo "1743"]
[Annotator "NA"]
[PlyCount "70"]
[EventDate "2019.08.02"]
[EventType "swiss"]
[EventCountry "SVK"]
[SourceTitle "playchess.com"]
[Source "ChessBase"]
[SourceQuality "1"]
[TimeControl "40/5400+30:1800+30"]

1. d4 {[%emt 0:00:00]} Nf6 {[%emt 0:00:00]} 2. Bf4 {[%emt 0:00:00]} g6 {[%emt 0:00:00]} 3. Nc3 {[%emt 0:00:03]} Bg7 {[%emt 0:00:10]} 4. e4 {[%emt 0:00:09]} d6 {[%emt 0:00:16]} 5. Qd2 {[%emt 0:00:05]} O-O {[%emt 0:10:20]} 6. O-O-O {[%emt 0:00:10]} Re8 {[%emt 0:01:15]} 7. Nf3 {[%emt 0:05:04]} c6 {[%emt 0:06:06]} 8. Bh6 {[%emt 0:02:38]} Bh8 {[%emt 0:01:51]} 9. h4 {[%emt 0:07:34]} b5 {[%emt 0:00:54]} 10. e5 {[%emt 0:07:00]} Ng4 {[%emt 0:04:43]} 11. Bf4 {[%emt 0:01:03]} Bf5 {[%emt 0:02:42]} 12. exd6 {[%emt 0:10:58]} exd6 {[%emt 0:00:11]} 13. d5 {[%emt 0:00:34]} b4 {[%emt 0:02:13]} 14. Nb1 {[%emt 0:01:27]} Qf6 {[%emt 0:02:52]} 15. c3 {[%emt 0:03:15]} Bxb1 {[%emt 0:01:35]} 16. Bg5 {[%emt 0:00:51]} bxc3 {[%emt 0:01:52]} 17. Qxc3 {[%emt 0:00:40]} Qxc3+ {[%emt 0:00:24]} 18. bxc3 {[%emt 0:00:11]} Nxf2 {[%emt 0:00:18]} 19. Bc4 {[%emt 0:00:17]} Nxh1 {[%emt 0:00:37]} 20. Rxh1 {[%emt 0:02:34]} Bf5 {[%emt 0:00:17]} 21. h5 {[%emt 0:02:21]} Bxc3 {[%emt 0:01:13]} 22. hxg6 {[%emt 0:00:33]} hxg6 {[%emt 0:00:22]} 23. Nd2 {[%emt 0:00:56]} a5 {[%emt 0:02:16]} 24. Kd1 {[%emt 0:00:48]} cxd5 {[%emt 0:00:00]} 25. Bxd5 {[%emt 0:00:27]} Ra7 {[%emt 0:00:00]} 26. g4 {[%emt 0:00:12]} Bxg4+ {[%emt 0:00:00]} 27. Kc2 {[%emt 0:00:13]} Rc7 {[%emt 0:00:07]} 28. Nc4 {[%emt 0:00:43]} Bg7 {[%emt 0:00:31]} 29. Kd3 {[%emt 0:00:07]} Rc5 {[%emt 0:00:36]} 30. Bxf7+ {[%emt 0:03:16]} Kxf7 {[%emt 0:00:07]} 31. Nxd6+ {[%emt 0:00:13]} Kf8 {[%emt 0:00:08]} 32. Bh4 {[%emt 0:03:09]} Rc3+ {[%emt 0:00:44]} 33. Kd2 {[%emt 0:00:14]} Re2+ {[%emt 0:00:07]} 34. Kd1 {[%emt 0:00:08]} Rh2+ {[%emt 0:00:08]} 35. Ke1 {[%emt 0:00:30]} Rc1# {[%emt 0:00:04]} 0-1

[Event "EYCC Open-U12 2019"]
[Site "Bratislava"]
[Date "2019.08.06"]
[Round "5.49"]
[White "Aasen, Joakim"]
[Black "Trzebinski, Patryk"]
[Result "1/2-1/2"]
[ECO "B28"]
[WhiteElo "1718"]
[BlackElo "1679"]
[Annotator "NA"]
[PlyCount "92"]
[EventDate "2019.08.02"]
[EventType "swiss"]
[EventCountry "SVK"]
[SourceTitle "playchess.com"]
[Source "ChessBase"]
[SourceQuality "1"]
[TimeControl "40/5400+30:1800+30"]

1. e4 {[%emt 0:00:00]} c5 {[%emt 0:00:00]} 2. Nf3 {[%emt 0:00:00]} a6 {[%emt 0:00:00]} 3. c4 {[%emt 0:00:27]} e6 {[%emt 0:00:23]} 4. d4 {[%emt 0:02:02]} cxd4 {[%emt 0:00:10]} 5. Nxd4 {[%emt 0:07:18]} b6 {[%emt 0:00:25]} 6. Nc3 {[%emt 0:01:57]} Bb7 {[%emt 0:01:37]} 7. Be3 {[%emt 0:00:51]} Bc5 {[%emt 0:01:28]} 8. Be2 {[%emt 0:02:46]} Ne7 {[%emt 0:00:51]} 9. O-O {[%emt 0:00:25]} O-O {[%emt 0:00:15]} 10. Qd2 {[%emt 0:02:40]} Nbc6 {[%emt 0:03:19]} 11. Rfd1 {[%emt 0:01:20]} Qc7 {[%emt 0:12:38]} 12. a3 {[%emt 0:05:20]} Rad8 {[%emt 0:32:17]} 13. Rac1 {[%emt 0:03:03]} f5 {[%emt 0:04:02]} 14. exf5 {[%emt 0:06:29]} Nxd4 {[%emt 0:02:56]} 15. Bxd4 {[%emt 0:00:56]} Nxf5 {[%emt 0:00:25]} 16. Bxc5 {[%emt 0:03:43]} bxc5 {[%emt 0:01:50]} 17. Bd3 {[%emt 0:08:42]} Nh4 {[%emt 0:08:43]} 18. Be4 {[%emt 0:05:26]} Rf6 {[%emt 0:08:58]} 19. Qd6 {[%emt 0:04:54]} Qc8 20. Qe7 Ng6 21. Bxb7 Nxe7 22. Bxc8 Nxc8 23. Ne4 Rf5 24. Nd6 Re5 25. Nxc8 Rxc8 26. Rxd7 Re2 27. b4 cxb4 28. axb4 Rxc4 29. Rcd1 Rxb4 30. Ra7 Rd2 31. Rc1 Rc2 32. Rd1 Rd2 33. Rc1 Rc2 34. Rd1 Rd4 35. Rb1 Rcd2 36. Rb8+ Rd8 37. Rxd8+ Rxd8 38. f4 Rd6 39. Kf2 h5 40. Ke3 Kh7 41. h3 Kg6 42. Ke4 Kf6 43. g4 hxg4 44. hxg4 g5 45. fxg5+ Kxg5 46. Ke5 Rc6 1/2-1/2

[Event "EYCC Open-U12 2019"]
[Site "Bratislava"]
[Date "2019.08.06"]
[Round "5.50"]
[White "Stevik, Patrik"]
[Black "Farmakoski, Georg"]
[Result "1/2-1/2"]
[ECO "A05"]
[WhiteElo "1941"]
[BlackElo "1355"]
[Annotator "NA"]
[PlyCount "79"]
[EventDate "2019.08.02"]
[EventType "swiss"]
[EventCountry "SVK"]
[SourceTitle "playchess.com"]
[Source "ChessBase"]
[SourceQuality "1"]
[TimeControl "40/5400+30:1800+30"]

1. Nf3 {[%emt 0:00:00]} Nf6 {[%emt 0:00:00]} 2. c4 {[%emt 0:00:14]} c5 {[%emt 0:00:42]} 3. Nc3 {[%emt 0:00:15]} g6 {[%emt 0:00:05]} 4. g3 {[%emt 0:00:07]} Bg7 {[%emt 0:00:01]} 5. Bg2 {[%emt 0:00:06]} O-O {[%emt 0:00:41]} 6. O-O {[%emt 0:00:14]} Nc6 {[%emt 0:00:05]} 7. a3 {[%emt 0:03:49]} d5 {[%emt 0:05:29]} 8. cxd5 {[%emt 0:02:01]} Nxd5 {[%emt 0:00:37]} 9. Nxd5 {[%emt 0:03:08]} Qxd5 {[%emt 0:00:06]} 10. d3 {[%emt 0:01:47]} Qd8 {[%emt 0:03:27]} 11. Qc2 {[%emt 0:02:50]} Nd4 {[%emt 0:10:27]} 12. Nxd4 {[%emt 0:01:34]} cxd4 {[%emt 0:00:06]} 13. Bd2 {[%emt 0:04:23]} Rb8 {[%emt 0:09:24]} 14. Rfc1 {[%emt 0:07:52]} Bf5 {[%emt 0:09:49]} 15. b4 {[%emt 0:10:12]} Rc8 {[%emt 0:25:26]} 16. Qb2 {[%emt 0:03:47]} Qd7 {[%emt 0:01:38]} 17. b5 {[%emt 0:03:23]} Rxc1+ {[%emt 0:10:08]} 18. Rxc1 {[%emt 0:00:08]} Rc8 {[%emt 0:00:17]} 19. Rxc8+ {[%emt 0:01:41]} Qxc8 {[%emt 0:00:05]} 20. a4 {[%emt 0:00:47]} e5 {[%emt 0:01:37]} 21. b6 {[%emt 0:10:58]} a6 {[%emt 0:01:33]} 22. Bb4 {[%emt 0:02:42]} Bd7 {[%emt 0:02:44]} 23. a5 {[%emt 0:01:51]} Bb5 {[%emt 0:00:36]} 24. Bd6 {[%emt 0:00:54]} Qd7 {[%emt 0:00:59]} 25. Qb4 {[%emt 0:03:16]} Bc6 {[%emt 0:00:19]} 26. Qc5 {[%emt 0:03:30]} Bxg2 {[%emt 0:01:11]} 27. Kxg2 {[%emt 0:00:01]} Qe6 {[%emt 0:00:32]} 28. Kg1 {[%emt 0:09:20]} h5 {[%emt 0:00:58]} 29. e4 {[%emt 0:01:15]} dxe3 {[%emt 0:00:02]} 30. fxe3 {[%emt 0:00:02]} e4 {[%emt 0:00:05]} 31. d4 {[%emt 0:01:11]} Bh6 {[%emt 0:00:57]} 32. Bf4 {[%emt 0:04:53]} Bxf4 {[%emt 0:00:49]} 33. exf4 {[%emt 0:00:17]} e3 {[%emt 0:00:20]} 34. Qe5 {[%emt 0:00:35]} Qb3 {[%emt 0:01:34]} 35. Kg2 {[%emt 0:16:29]} Qc2+ {[%emt 0:03:30]} 36. Kh3 {[%emt 0:00:04]} e2 {[%emt 0:00:35]} 37. Qe8+ {[%emt 0:00:11]} Kg7 {[%emt 0:00:07]} 38. Qe5+ {[%emt 0:00:11]} Kh7 {[%emt 0:04:55]} 39. Qe7 {[%emt 0:00:24]} Qa2 {[%emt 0:05:27]} 40. d5 1/2-1/2

[Event "EYCC Open-U12 2019"]
[Site "Bratislava"]
[Date "2019.08.06"]
[Round "5.51"]
[White "Soucek, Jan"]
[Black "Pingin, Artem"]
[Result "0-1"]
[ECO "B41"]
[WhiteElo "1577"]
[BlackElo "2155"]
[Annotator "NA"]
[PlyCount "132"]
[EventDate "2019.08.02"]
[EventType "swiss"]
[EventCountry "SVK"]
[SourceTitle "playchess.com"]
[Source "ChessBase"]
[SourceQuality "1"]
[TimeControl "40/5400+30:1800+30"]

1. e4 {[%emt 0:00:00]} c5 {[%emt 0:00:01]} 2. Nf3 {[%emt 0:00:00]} e6 {[%emt 0:00:58]} 3. d4 {[%emt 0:00:00]} cxd4 {[%emt 0:00:05]} 4. Nxd4 {[%emt 0:00:00]} a6 {[%emt 0:00:37]} 5. c4 {[%emt 0:01:39]} Nf6 {[%emt 0:02:06]} 6. Nc3 {[%emt 0:04:25]} Qc7 {[%emt 0:00:12]} 7. Be2 {[%emt 0:02:15]} Bb4 {[%emt 0:02:43]} 8. Qc2 {[%emt 0:02:28]} Qe5 {[%emt 0:02:37]} 9. Be3 {[%emt 0:14:12]} Qxe4 {[%emt 0:04:30]} 10. Bd3 {[%emt 0:03:56]} Qe5 {[%emt 0:00:22]} 11. Nde2 {[%emt 0:09:21]} Qc7 {[%emt 0:01:10]} 12. h3 {[%emt 0:05:11]} d5 {[%emt 0:07:09]} 13. Qa4+ {[%emt 0:10:56]} Nc6 {[%emt 0:00:13]} 14. O-O {[%emt 0:00:42]} dxc4 {[%emt 0:01:36]} 15. Bxc4 {[%emt 0:00:40]} O-O {[%emt 0:00:21]} 16. Rac1 {[%emt 0:06:21]} Bd7 {[%emt 0:03:00]} 17. Qb3 {[%emt 0:09:49]} b5 {[%emt 0:08:20]} 18. Bd3 {[%emt 0:01:37]} Be7 {[%emt 0:01:21]} 19. Ne4 {[%emt 0:01:36]} Nd5 {[%emt 0:05:31]} 20. Bc5 {[%emt 0:00:37]} Bxc5 {[%emt 0:00:43]} 21. Nxc5 {[%emt 0:00:23]} Qd6 {[%emt 0:08:07]} 22. Be4 {[%emt 0:05:34]} Nce7 {[%emt 0:01:04]} 23. Nxd7 {[%emt 0:12:44]} Qxd7 {[%emt 0:00:05]} 24. Rcd1 {[%emt 0:00:50]} Qc7 {[%emt 0:02:21]} 25. Rc1 {[%emt 0:00:53]} Qb6 {[%emt 0:02:45]} 26. Nc3 {[%emt 0:03:25]} Nxc3 {[%emt 0:00:38]} 27. Rxc3 {[%emt 0:00:20]} Rac8 {[%emt 0:00:53]} 28. Rfc1 {[%emt 0:00:22]} g6 {[%emt 0:03:48]} 29. Rxc8 {[%emt 0:02:59]} Rxc8 {[%emt 0:00:05]} 30. Rxc8+ {[%emt 0:00:05]} Nxc8 {[%emt 0:00:05]} 31. Qc3 {[%emt 0:00:07]} Nd6 {[%emt 0:00:27]} 32. Bf3 {[%emt 0:00:03]} b4 {[%emt 0:01:33]} 33. Qd2 {[%emt 0:01:26]} a5 {[%emt 0:00:55]} 34. a3 {[%emt 0:01:03]} bxa3 {[%emt 0:02:34]} 35. bxa3 {[%emt 0:00:07]} Qc5 {[%emt 0:00:05]} 36. Qb2 {[%emt 0:01:11]} Nb5 {[%emt 0:01:15]} 37. a4 {[%emt 0:00:15]} Nc3 {[%emt 0:01:47]} 38. Qb8+ {[%emt 0:00:47]} Kg7 {[%emt 0:00:13]} 39. Qb2 {[%emt 0:00:27]} Qb4 {[%emt 0:03:15]} 40. Qa1 {[%emt 0:00:00]} Qb1+ {[%emt 0:00:00]} 41. Qxb1 {[%emt 0:02:19]} Nxb1 {[%emt 0:00:46]} 42. Bd1 {[%emt 0:00:42]} Kf6 {[%emt 0:01:05]} 43. Bc2 {[%emt 0:02:17]} Nc3 {[%emt 0:00:32]} 44. Kf1 {[%emt 0:00:15]} Ke5 {[%emt 0:00:12]} 45. Ke1 {[%emt 0:01:47]} Kd4 {[%emt 0:00:39]} 46. Kd2 {[%emt 0:01:18]} Kc4 {[%emt 0:00:20]} 47. h4 {[%emt 0:03:44]} Kb4 {[%emt 0:01:04]} 48. g4 {[%emt 0:00:48]} Nxa4 {[%emt 0:01:22]} 49. g5 {[%emt 0:00:09]} Nc5 {[%emt 0:00:13]} 50. Ke3 {[%emt 0:00:38]} Nb3 {[%emt 0:00:53]} 51. Kf4 {[%emt 0:02:23]} a4 {[%emt 0:00:21]} 52. Ke5 {[%emt 0:01:25]} a3 {[%emt 0:00:10]} 53. Bb1 {[%emt 0:00:06]} Kc3 {[%emt 0:00:10]} 54. Kf6 {[%emt 0:00:12]} Kb2 {[%emt 0:00:04]} 55. Kxf7 {[%emt 0:00:23]} Kxb1 {[%emt 0:00:05]} 56. Kg7 {[%emt 0:00:05]} a2 {[%emt 0:00:02]} 57. Kxh7 {[%emt 0:00:04]} a1=Q {[%emt 0:00:05]} 58. Kxg6 {[%emt 0:00:07]} Qh8 {[%emt 0:00:04]} 59. h5 {[%emt 0:00:08]} Nd4 {[%emt 0:00:15]} 60. h6 {[%emt 0:00:55]} Nf5 {[%emt 0:00:09]} 61. f4 {[%emt 0:01:18]} Qf8 {[%emt 0:00:55]} 62. Kh5 {[%emt 0:00:21]} Nxh6 {[%emt 0:00:08]} 63. gxh6 {[%emt 0:00:11]} Qf5+ {[%emt 0:00:08]} 64. Kh4 {[%emt 0:00:06]} Qxf4+ {[%emt 0:00:01]} 65. Kh5 {[%emt 0:00:08]} Qf5+ {[%emt 0:00:03]} 66. Kh4 {[%emt 0:00:03]} Qg6 {[%emt 0:00:02]} 0-1

[Event "EYCC Open-U12 2019"]
[Site "Bratislava"]
[Date "2019.08.06"]
[Round "5.52"]
[White "Isaksson, Philip"]
[Black "Nemsadze, Daviti"]
[Result "0-1"]
[ECO "B30"]
[WhiteElo "1646"]
[BlackElo "1794"]
[Annotator "NA"]
[PlyCount "122"]
[EventDate "2019.08.02"]
[EventType "swiss"]
[EventCountry "SVK"]
[SourceTitle "playchess.com"]
[Source "ChessBase"]
[SourceQuality "1"]
[TimeControl "40/5400+30:1800+30"]

1. e4 {[%emt 0:00:00]} c5 {[%emt 0:00:00]} 2. Nf3 {[%emt 0:00:00]} Nc6 {[%emt 0:00:00]} 3. Bb5 {[%emt 0:00:00]} e6 {[%emt 0:00:10]} 4. O-O {[%emt 0:00:09]} Nge7 {[%emt 0:00:01]} 5. c3 {[%emt 0:00:44]} a6 {[%emt 0:00:11]} 6. Bd3 {[%emt 0:00:54]} d5 {[%emt 0:00:38]} 7. Re1 {[%emt 0:09:09]} g6 {[%emt 0:16:46]} 8. Bc2 {[%emt 0:01:58]} Bg7 {[%emt 0:01:15]} 9. e5 {[%emt 0:11:40]} d4 {[%emt 0:00:49]} 10. cxd4 {[%emt 0:05:27]} cxd4 {[%emt 0:00:11]} 11. d3 {[%emt 0:02:01]} Qc7 {[%emt 0:03:08]} 12. Bf4 {[%emt 0:01:31]} h6 {[%emt 0:03:58]} 13. Bg3 {[%emt 0:01:27]} Nf5 {[%emt 0:00:17]} 14. Qe2 {[%emt 0:06:21]} Nxg3 {[%emt 0:00:16]} 15. hxg3 {[%emt 0:00:19]} O-O {[%emt 0:00:31]} 16. Bb3 {[%emt 0:03:29]} b5 {[%emt 0:01:41]} 17. Nbd2 {[%emt 0:01:04]} Bb7 {[%emt 0:00:59]} 18. Rac1 {[%emt 0:03:06]} Qb6 {[%emt 0:01:29]} 19. a3 {[%emt 0:12:07]} Rfd8 {[%emt 0:02:27]} 20. Rc2 {[%emt 0:01:11]} Rac8 {[%emt 0:05:13]} 21. Rec1 {[%emt 0:00:46]} Qa7 {[%emt 0:10:58]} 22. Ba2 {[%emt 0:08:52]} Qb8 {[%emt 0:00:17]} 23. Re1 {[%emt 0:02:33]} Nxe5 {[%emt 0:03:58]} 24. Rxc8 {[%emt 0:01:46]} Nxf3+ {[%emt 0:00:03]} 25. Nxf3 {[%emt 0:01:55]} Rxc8 {[%emt 0:00:13]} 26. Nh4 {[%emt 0:02:44]} g5 {[%emt 0:02:07]} 27. Nf3 {[%emt 0:00:52]} Rc5 {[%emt 0:00:32]} 28. Qd2 {[%emt 0:01:55]} Qc7 {[%emt 0:01:31]} 29. Bb3 {[%emt 0:00:22]} Bf6 {[%emt 0:04:16]} 30. Qe2 {[%emt 0:00:37]} Kg7 {[%emt 0:00:08]} 31. Qd2 {[%emt 0:00:14]} Qc6 {[%emt 0:00:19]} 32. g4 {[%emt 0:02:45]} Qc7 {[%emt 0:01:59]} 33. Rd1 {[%emt 0:01:08]} Kh7 {[%emt 0:06:46]} 34. Re1 {[%emt 0:00:29]} Qc6 {[%emt 0:03:27]} 35. Re4 {[%emt 0:01:52]} Qc7 {[%emt 0:01:23]} 36. Re1 {[%emt 0:00:24]} Kg6 {[%emt 0:01:38]} 37. Qe2 {[%emt 0:01:52]} Qf4 {[%emt 0:01:43]} 38. Qd1 {[%emt 0:03:35]} Kg7 {[%emt 0:00:32]} 39. Nd2 {[%emt 0:01:50]} Rc8 {[%emt 0:09:13]} 40. Qe2 {[%emt 0:00:00]} Qd6 {[%emt 0:00:00]} 41. Ne4 {[%emt 0:09:27]} Qc6 {[%emt 0:06:26]} 42. Qf3 {[%emt 0:01:43]} Be7 {[%emt 0:00:47]} 43. Qg3 {[%emt 0:03:01]} Qc7 {[%emt 0:01:42]} 44. Qf3 {[%emt 0:07:20]} Rf8 {[%emt 0:00:53]} 45. Qe2 {[%emt 0:01:38]} Qc6 {[%emt 0:00:58]} 46. Qf1 {[%emt 0:01:17]} Rc8 {[%emt 0:01:03]} 47. Ng3 {[%emt 0:02:35]} a5 {[%emt 0:01:16]} 48. Nf5+ {[%emt 0:02:48]} Kf8 {[%emt 0:01:52]} 49. Nxd4 {[%emt 0:06:11]} Qc5 {[%emt 0:00:19]} 50. Ne2 {[%emt 0:02:37]} a4 {[%emt 0:00:12]} 51. Rc1 {[%emt 0:01:39]} Qe5 {[%emt 0:01:10]} 52. Rxc8+ {[%emt 0:02:16]} Bxc8 {[%emt 0:00:01]} 53. d4 {[%emt 0:01:25]} Qe4 {[%emt 0:00:30]} 54. Ba2 {[%emt 0:01:47]} b4 {[%emt 0:02:35]} 55. Bb1 {[%emt 0:01:19]} Qb7 {[%emt 0:00:59]} 56. axb4 {[%emt 0:01:10]} Qxb4 {[%emt 0:00:13]} 57. Qc1 {[%emt 0:00:09]} Ba6 {[%emt 0:00:09]} 58. Qc3 {[%emt 0:00:49]} Bxe2 {[%emt 0:00:05]} 59. Qc8+ {[%emt 0:00:40]} Kg7 {[%emt 0:00:05]} 60. Qc3 Ba6 61. Qc1 Qxd4 0-1